Cogmind - Beta 16.1 @@@ ROGUE MODE // 2026.02.15 @ 14:29:23 Player: SunShine214 Result: Destroyed by D-53 Grenadier with Mini Grenade Launcher Performance ------------- Evolutions (0) 0 Regions Visited (2) 400 Robots Destroyed (21) 105 Value Destroyed (392) 392 Prototype IDs (4) 80 Alien Tech Used (0) 0 Bonus (0) 0 TOTAL SCORE: 977 Bonus ------- None Cogmind --------- Core Integrity 0/250 Matter 129/300 Energy 100/100 System Corruption 0% Temperature Cool (0) Movement Core (50) Location -10/Mines Parts ------- > --- POWER (1) -------- (None) > --- PROPULSION (2) --- (None) > --- UTILITY (2) ------ Signal Interpreter > --- WEAPON (2) ------- (None) > --- INVENTORY (5) ---- Sensor Array Light Armor Plating Light Armor Plating Light Armor Plating EM Pulse Gun Peak State ------------ > --- POWER ------------ Ion Engine > --- PROPULSION ------- Light Treads Light Treads > --- UTILITY ---------- Small Storage Unit Improved Terrain Scanner > --- WEAPON ----------- EM Pulse Gun EM Pulse Gun > --- INVENTORY -------- Light Ion Engine Aluminum Leg Aluminum Leg Light Assault Rifle [Rating: 9] Favorites ----------- Power Ion Engine Engine Ion Engine Propulsion Light Treads Treads Light Treads Flight Unit Flight Unit Utility Small Storage Unit Device Improved Terrain Scanner Storage Small Storage Unit Processor Signal Interpreter Weapon EM Pulse Gun Energy Gun EM Pulse Gun Launcher Grenade Launcher Special Weapon Mining Laser Build | -11 -10 -10 ------- Run | Yrd Mat Min Slots Evolved . | . . . Power . | . . . Propulsion . | . . . Utility . | . . . Weapon . | . . . Parts Attached 14 | 8 4 2 Power 3 | 2 1 . Engine 3 | 2 1 . Core . | . . . Reactor . | . . . Propulsion 4 | 2 . 2 Treads 2 | 2 . . Leg . | . . . Wheel . | . . . Hover . | . . . Flight 2 | . . 2 Utility 3 | 2 1 . Device 1 | 1 . . Storage 1 | 1 . . Processor 1 | . 1 . Hackware . | . . . Protection . | . . . Artifact . | . . . Weapon 4 | 2 2 . Energy Gun 2 | 2 . . Energy Cannon . | . . . Ballistic Gun . | . . . Ballistic Cannon . | . . . Launcher 1 | . 1 . Special Weapon 1 | . 1 . Impact Weapon . | . . . Slashing Weapon . | . . . Piercing Weapon . | . . . Special Melee Weapon . | . . . Unidentified Prototypes . | . . . Parts Lost 5 | . . 5 Power 1 | . . 1 Propulsion 2 | . . 2 Utility . | . . . Weapon 2 | . . 2 Highest Loss Streak 5 | . . 5 To Critical Strikes . | . . . Average Backups 5 | 2 6 7 Power . | . . . Propulsion 1 | 1 1 1 Utility 1 | . . 4 Weapon 2 | 1 2 1 Tool/Special . | . . . Unused Backups 9 | 1 4 4 Power . | . . . Propulsion 3 | 1 2 . Utility 5 | . 1 4 Weapon 1 | . 1 . Tool/Special . | . . . Average Slot Usage (%) 97 | . 100 74 Engine 13 | . 14 8 Treads 26 | . 28 17 Device 9 | . 10 . Storage 13 | . 14 10 Processor 4 | . 3 14 Energy Gun 23 | . 25 7 Launcher 2 | . 1 8 Special Weapon 1 | . 1 . Peak Build Rating 9 | 9 9 7 Average Rating 7 | 5 8 4 On Entrance 5 | . 9 7 Avg Prop Armor Cover (%) . | . . . Naked Turns . | . . . Heaviest Build 16 | 15 16 13 Greatest Support 40 | 40 40 40 Greatest Overweight (x) . | . . . Average Overweight (x) . | . . . Largest Inventory Capacity 8 | 8 8 8 Average Capacity 7 | 6 8 7 Most Carried 8 | 5 8 8 Average Carried 5 | 2 6 6 Final Capacity 8 | 8 8 5 Final Carried 8 | 5 8 5 Class Distribution -------------------- 100% | Mutant Dominant Class ---------------- Mutant | -10/Materials Mutant | -10/Mines Resources | -11 -10 -10 ----------- Run | Yrd Mat Min Matter Collected 280 | 280 . . Remotely . | . . . Salvage Created 561 | 125 395 41 Parts 39 | 10 22 7 Haulers Intercepted . | . . . Recyclers Shooed . | . . . Parts Field Recycled . | . . . Retrieved Matter . | . . . Parts Self-Destructed . | . . . Prevented . | . . . Parts Restored . | . . . Kills | -11 -10 -10 ------- Run | Yrd Mat Min Combat Hostiles Destroyed 21 | . 11 10 Guns 4 | . 4 . AOE 17 | . 7 10 Classes Destroyed 8 | 2 5 1 Worker 1 | . 1 . Tunneler 2 | 2 . . Recycler 2 | 1 1 . Operator 1 | . 1 . Watcher 1 | . 1 . Swarmer 9 | . 6 3 Grunt 5 | . 5 . Assembled 7 | . . 7 Best Kill Streak 7 | 2 4 7 Combat Bots Only 7 | . 3 7 Max Kills in Single Turn 3 | 1 2 3 Gunslinging . | . . . Exploded 3 | . 2 3 Melee . | . . . Uniques/NPCs Destroyed . | . . . Combat | -11 -10 -10 -------- Run | Yrd Mat Min Hostile Shots Fired 77 | . 28 49 Missed 27 | . 10 17 Hits 50 | . 18 32 Melee 1 | . . 1 Projectile 49 | . 18 31 AOE 3 | . . 3 Damage Taken 776 | . 221 555 Core 273 | . 60 213 Absorbed by Shields . | . . . Core Remaining (%) 100 | 100 . . Volleys Fired 45 | 5 34 6 Largest 2 | 2 2 2 Hottest 140 | 80 140 70 Shots Fired 88 | 10 68 10 Gun 74 | 10 60 4 Cannon . | . . . Launcher 10 | . 4 6 Special 4 | . 4 . Kinetic . | . . . Thermal 4 | . 4 . Explosive 10 | . 4 6 Electromagnetic 74 | 10 60 4 Robot Hit Streak 7 | 4 7 2 Robot Miss Streak 13 | 1 13 1 Penetration Max . | . . . Secondary Targets . | . . . Shots Hit Robots 33 | 6 23 4 Core Hits 44 | 3 19 22 Critical Kills . | . . . Critical Parts Destroyed . | . . . Critical Strikes 1 | . 1 . Corrupt 1 | . 1 . Melee Attacks . | . . . Impact . | . . . Slashing . | . . . Piercing . | . . . Sneak Attacks . | . . . Combat Hostiles . | . . . Follow-up Attacks . | . . . Damage Inflicted 1707 | 115 994 598 Guns 465 | 81 384 . Cannons . | . . . Explosions 1234 | 34 602 598 Melee . | . . . Ramming 8 | . 8 . Kinetic . | . . . Thermal 239 | 34 205 . Explosive 995 | . 397 598 Electromagnetic 465 | 81 384 . Impact . | . . . Slashing . | . . . Piercing . | . . . Highest Corruption . | . . . Average Corruption . | . . . Corruption Purged . | . . . Corruption Blocked . | . . . Overload Shots . | . . . Overflow Damage 29 | . 1 28 Projectiles . | . . . Explosions 29 | . 1 28 Melee . | . . . Knockbacks . | . . . Impact . | . . . Kinetic . | . . . Secondary . | . . . Self-Inflicted Damage 64 | . 33 31 Shots 3 | . 2 1 Rammed 1 | . 1 . Targets Rammed 1 | . 1 . Kicked . | . . . Crushed . | . . . Highest Temperature 199 | 54 199 27 Average Temperature 40 | 23 47 11 Received Heat Transfer 163 | . 63 100 Siege Activations . | . . . Martial Activations . | . . . Shielding Activations . | . . . Robots Disrupted . | . . . Combat Hostiles . | . . . Robots Corrupted . | . . . Combat Hostiles . | . . . Parts Fried . | . . . Impact Corruptions . | . . . Robots Melted . | . . . Combat Hostiles . | . . . Parts Melted . | . . . Heat Transferred 150 | 50 100 . Parts Sabotaged . | . . . Parts Stolen . | . . . Parts Stripped . | . . . Power Chain Reactions 4 | 1 3 . Alert | -11 -10 -10 ------- Run | Yrd Mat Min Maximum Alert Level 1 | . 1 . Low Security (%) 90 | 100 87 100 Level 1 9 | . 12 . Level 2 . | . . . Level 3 . | . . . Level 4 . | . . . Level 5 . | . . . High Security . | . . . Max Security . | . . . Peak Influence 224 | 10 224 169 Initial 84 | . . 84 Average 72 | 1 80 140 Influence Increases 565 | 15 450 100 Destroy 0b10 Robot/C 280 | . 220 60 Destroy 0b10 Robot/NC 35 | 15 20 . Destroy Leader 62 | . 52 10 Successful Hack 17 | . 17 . Disable Machine 90 | . 90 . Destroy Structure 81 | . 51 30 Influence Decreases 461 | 15 234 212 Entered New Map 132 | . . 132 Time Decay 279 | 15 234 30 Lost Part 50 | . . 50 Squads Dispatched 2 | . 2 . Investigation 1 | . 1 . Extermination . | . . . Reinforcement 1 | . 1 . Assault . | . . . Garrison . | . . . Intercept . | . . . Searches Triggered . | . . . Construction Impeded . | . . . Haulers Reinforced . | . . . Active Scanning Responses . | . . . Cargo Convoy Interrupts . | . . . Stealth | -11 -10 -10 --------- Run | Yrd Mat Min Distress Signals 1 | . 1 . Communications Jammed . | . . . Distress Signals . | . . . Times Spotted 50 | . 16 34 Peak Tracking Total 20 | . 3 20 Tactical Retreats 1 | . . 1 Traps | -11 -10 -10 ------- Run | Yrd Mat Min Traps Triggered . | . . . Indirectly . | . . . Trap Hack Attempts . | . . . Triggered . | . . . Disarmed . | . . . Reprogrammed . | . . . Reused . | . . . Traps Extracted . | . . . Installed . | . . . Triggered . | . . . Machines | -11 -10 -10 ---------- Run | Yrd Mat Min Machines Disabled 6 | . 6 . Max in Single Turn 2 | . 2 . Machines Repaired . | . . . Machines Dismantled . | . . . Machines Sabotaged . | . . . Overloaded Fab Kills . | . . . Hacking | -11 -10 -10 --------- Run | Yrd Mat Min Machines Accessed 4 | . 4 . Terminals 4 | . 4 . Fabricators . | . . . Repair Stations . | . . . Recycling Units . | . . . Scanalyzers . | . . . Garrison Access . | . . . Total Hacks 8 | . 8 . Successful 6 | . 6 . Failed 2 | . 2 . Catastrophic . | . . . Database Lockouts . | . . . Manual . | . . . Terminals 8 | . 8 . Fabricators . | . . . Repair Stations . | . . . Recycling Units . | . . . Scanalyzers . | . . . Garrison Access . | . . . Terminal Hacks 6 | . 6 . Prototype ID Bank 2 | . 2 . Branch Access Points 1 | . 1 . Hauler Manifests 2 | . 2 . Zone Layout 1 | . 1 . Fabricator Hacks . | . . . Repair Station Hacks . | . . . Recycling Unit Hacks . | . . . Scanalyzer . | . . . Garrison Access Hacks . | . . . Unauthorized Hacks . | . . . Terminals . | . . . Fabricators . | . . . Repair Stations . | . . . Recycling Units . | . . . Scanalyzers . | . . . Garrison Access . | . . . Data Cores Recovered . | . . . Used . | . . . Hacking Detections 2 | . 2 . Full Trace Events . | . . . Feedback Events . | . . . Feedback Blocked . | . . . Robot Schematics Acquired . | . . . Robots Built . | . . . Authchips . | . . . Time . | . . . Total Robot Build Rating . | . . . Part Schematics Acquired . | . . . Parts Built . | . . . Authchips . | . . . Time . | . . . Total Part Build Rating . | . . . Part Studies Acquired . | . . . Parts Repaired . | . . . Time . | . . . Parts Recycled . | . . . Recycled Matter . | . . . Retrieved Matter . | . . . Retrieved Components . | . . . Parts Scanalyzed . | . . . Part Schematics Acquired . | . . . Parts Damaged . | . . . Bothacking | -11 -10 -10 ------------ Run | Yrd Mat Min Used RIF Installer . | . . . Robots Hacked . | . . . Non-combat . | . . . Combat . | . . . Robot Hacks Applied . | . . . Relay Couplers Released . | . . . Fabnet Peak Effective % . | . . . Robots Rewired . | . . . Allies Hacked . | . . . Hacks Repelled . | . . . Allies | -11 -10 -10 -------- Run | Yrd Mat Min Total Allies . | . . . Largest Group . | . . . Highest-Rated Group . | . . . Highest-Rated Ally . | . . . Total Orders . | . . . Ally Attacks . | . . . Total Damage . | . . . Kills . | . . . Allies Corrupted . | . . . Allies Melted . | . . . Intel | -11 -10 -10 ------- Run | Yrd Mat Min Active Infowar (turns) 502 | 43 459 . Terrain 502 | 43 459 . Robot Analysis Total . | . . . Derelict Logs Recovered . | . . . Drone Launches . | . . . Drone Recoveries . | . . . Exploration | -11 -10 -10 ------------- Run | Yrd Mat Min Turns Passed 827 | 135 617 75 Spaces Moved 400 | 66 272 62 Core 6 | 2 . 4 Treads 352 | 64 272 16 Legs . | . . . Wheels . | . . . Hover . | . . . Flight 42 | . . 42 Fastest Speed 37 | 50 160 37 Average Speed 145 | 156 160 71 Slowest Speed 160 | 160 160 160 Overloaded Moves . | . . . Propulsion Burnouts . | . . . Robots Hopped . | . . . Potential Cave-ins . | . . . Cave-ins Triggered . | . . . Exploration Rate (%) 23 | 4 48 17 Regions Visited 2 Branch Regions 1 Pre-discovered Areas . | . . . Known Exits Taken 1 | . 1 . Unknown Exits Taken 1 | 1 . . Scrap Searched . | . . . Spaces Dug 2 | . 2 . Terrain Destroyed 97 | 5 57 35 Melee . | . . . Projectile 2 | . 2 . AOE 95 | 5 55 35 Terrain Rammed . | . . . Walls Destroyed . | . . . Machines Disabled . | . . . Actions | -11 -10 -10 --------- Run | Yrd Mat Min Total 545 | 84 378 83 Wait 60 | . 51 9 Move 398 | 65 271 62 Hop . | . . . Pick Up 13 | 5 8 . Fast Attach 7 | 7 . . Attach 2 | . . 2 Detach . | . . . Swap 9 | 1 7 1 Drop 10 | 1 6 3 Fire 45 | 5 34 6 Melee . | . . . Ram . | . . . Kick . | . . . Crush 1 | . 1 . Escape Stasis . | . . . Rewire . | . . . Trap . | . . . Miscellaneous . | . . . Route ------- -11/Scrapyard -10/Materials (discovered 5 exits: [*Mat x3] / *Min / [*Sub]) -10/Mines History --------- Turn | Location | Event 6 | -11/Scrapyard | Discovered new exit (range 15) 136 | -11/Scrapyard | Entered Materials 308 | -10/Materials | Build established: Mutant 431 | -10/Materials | Discovered new exit (range 8) 495 | -10/Materials | Identified exit to Mines 578 | -10/Materials | Discovered new exit (range 16) 636 | -10/Materials | Derelicts attacked the area 672 | -10/Materials | Discovered new exit (range 11) 705 | -10/Materials | Discovered new exit (range 15) 753 | -10/Materials | Entered Mines 754 | -10/Mines | Assembled infested the area 759 | -10/Mines | Assisted by a Guerilla fighting off Assembled 773 | -10/Mines | Met a Derelict bent on vengeance 799 | -10/Mines | Core integrity fell below 50% 805 | -10/Mines | Core integrity fell below 20% 809 | -10/Mines | Destroyed 7 combat bots 828 | -10/Mines | Destroyed by D-53 Grenadier with Mini Grenade Launcher Last Messages --------------- 00782_ as-46101 destroyed. 00785_ as-95280 destroyed. 00785_ as-14156 destroyed. 00785_ as-01724 destroyed. 00787_ EM Pulse Gun destroyed. 00788_ as-86902 destroyed. 00788_ as-16024 destroyed. 00793_ Grenade Launcher destroyed. 00797_ Dropped Lgt. Treads. 00797_ Lgt. Ion Engine destroyed. 00797_ Dropped Lgt. Treads. 00801_ T-07 Excavator is excavating. 00802_ Flight Unit destroyed. 00803_ Dropped Sml. Storage Unit. 00804_ as-77586 destroyed. 00804_ as-73646 destroyed. 00804_ as-14809 destroyed. 00826_ Flight Unit destroyed. 00826_ D-53 Grenadier destroyed. 00827_ U-05 Engineer lays Concrete. Map ----- +----------------------------------------------------+ | ?????????????????????????????????????????????????? | | ?????????????????????????????????????????????????? | | ?????????????????????????????????????????????????? | | ?????????????????????????????????????????????????? | | ?????????????????????????????????????????????????? | | ?????????????????????????????????????????????????? | | ?????????????????????????????????????????????????? | | ?????????????????????? ??????????????????????????? | | ?????????????????????? ??????????????????????????? | | ?????????????????????# ###???????????????????????? | | ?????????????????????# #???????????????????????? | | ???????????????#####?#u #??????????????????????? | | ??????????????## # ## ???????????????????????? | | ??????????????# ???????????????????????? | | ?????????????## ###?????????????????????? | | ????###?###### %* r ?????????????????? | | ???## ## # #?????????????????? | | ??## # ????????????????????????? | | ??# = # #???????????????????????? | | ??# *%= % ##??????????????????????? | | ??# [%[% #??????????????????????? | | ??## * ##?????????????????????? | | ???## # # == #?????????????????????? | | ????## ?###### ! #?????????????????????? | | ?????##???????## | ##????????????????????? | | ???????????????# ### @ ##???????????????????? | | ???????????????# ## #???????????????????? | | ??????????????# ## #???????????????????? | | ?????????????# ### d #???????????????????? | | ???????????? #####?# %= ##???????????????????? | | ???????????# #???### #????????????????????? | | ???????????# #???## #????????????????????? | | ???????????# ???## ###????????????????????? | | ???????????##????# #?????????????????????? | | ?????????????????## #?????????????????????? | | ??????????????????## ##?????????????????????? | | ??????????????????# ##??????????????????????? | | ?????????????????# ##??????????????????????? | | ?????????????????# #??????????????????????? | | ?????????????????# #??????????????????????? | | ?????????????????#### #??????????????????????? | | ????????????????????## ##??????????????????????? | | ?????????????????????# ###???????????????????????? | | ?????????????????????##??????????????????????????? | | ?????????????????????????????????????????????????? | | | | | | | | | | | +----------------------------------------------------+ Best States ------------- Heat Dissipation 25 Energy Generation 10 Energy Capacity 250 Matter Stores 300 Matter Capacity 300 Sight Range 16 Terrain Scan Range 16 Terrain Scan Density 10 Evasion (%) 62 Recoil Reduction 2 Item Schematics ----------------- None Robot Schematics ------------------ None Fabricated ------------ Nothing Repaired ---------- Nothing Studied --------- None Alien Tech Used ----------------- None Achievements -------------- None Challenges ------------ None Game ------ Seed PiercingHoverCasing Manual? 0 Play Time 00:09:53 Cumulative 65.5 hours Start 2026.02.15 @ 14:18:31 End 2026.02.15 @ 14:29:23 Sessions 1 Manual Loads 0 Difficulty Rogue Special Mode None Game No. 114 Rogue 114 Adventurer 0 Explorer 0 Win Type - Total 0 Types 0/0/0/0/0/0/0/0/0/0 Lore% 35 Gallery% 40 Achievement% 29 Wizard Run 0 Options --------- Layout 1 ASCII 0 Keyboard 1 Movement Arrows Keybinds 0 Fullscreen 1 Font 24/Smallcaps Map View 50x35 Zoom Use 0% Tactical HUD 1 Map Filters NONE Filters NONE Steam 1 RUN: d5f75206-c171-4007-9458-cd8d501d1b31